{"text_format":"3","workbook":"xlsx","n_sheets":1,"sheets":["Opstartuitgaven"],"not_rendered":{"defined_names":1},"read":"whole","date_system":"1900"}

{"sheet":"Opstartuitgaven","index":0,"n_rows":120,"n_cols":4,"rows_kept":120,"merged":[[1,1,1,3],[10,1,10,3],[17,1,17,3],[25,1,25,3],[34,1,34,3],[42,1,42,3],[50,1,50,3],[55,1,55,3],[57,1,57,3],[59,1,59,3],[60,1,60,3],[69,1,69,3],[76,1,76,3],[81,1,81,3],[82,1,82,3],[90,1,90,3],[102,1,102,3],[110,1,110,3],[115,1,115,3]]}
["OPSTARTUITGAVEN",null,null,"BEDRIJFSNAAM, LTD"]
[null,"VOORDAT U DIT WERKBLAD GEBRUIKT\nVrijwel iedereen die ooit een bedrijf heeft gestart, heeft de kosten onderschat en werd vervolgens geconfronteerd met onvoldoende kapitaalreserve. De sleutel tot het vermijden van deze valkuil is een zorgvuldige benadering van uw onderzoek en planning. De sjabloon Opstartuitgaven begeleidt u bij het proces.\n\nBEGIN MET HET SCHATTEN VAN UW UITGAVEN\nWat kost het u om met uw bedrijf aan de slag te kunnen gaan? De sleutel tot nauwkeurigheid is aandacht voor details. Maak voor elke categorie van onkosten een lijst van alles wat u moet kopen. Dit is inclusief materiële activa (bijvoorbeeld apparatuur, voorraad) en services (bijvoorbeeld verbouwing, verzekeringen). Bepaal vervolgens waar u deze goederen of services gaat kopen. Bekijk meer dan één leverancier en gebruik bijvoorbeeld een vergelijkingssite. Kijk niet alleen naar prijs. Betalingsvoorwaarden, levering, betrouwbaarheid en service zijn ook belangrijk. "]
[]
[null,"OPSTARTUITGAVEN"]
[null,"GEBOUWEN/ONROEREND GOED"," ","BEDRAG"]
[null,"Aankoop",null,{"v":0,"d":"€ 0.00"}]
[null,"Bouw",null,{"v":0,"d":"€ 0.00"}]
[null,"Verbouwing",null,{"v":0,"d":"€ 0.00"}]
[null,"Overige",null,{"v":0,"d":"€ 0.00"}]
[null,"Totaal",null,{"$f":"SUBTOTAL(109,OnroerendGoed[BEDRAG])","v":{"v":0,"d":"€ 0.00"}}]
[]
[null,"HUURVERBETERINGEN"," ","BEDRAG"]
[null,"Artikel 1",null,{"v":0,"d":"€ 0.00"}]
[null,"Artikel 2",null,{"v":0,"d":"€ 0.00"}]
[null,"Artikel 3",null,{"v":0,"d":"€ 0.00"}]
[null,"Artikel 4",null,{"v":0,"d":"€ 0.00"}]
[null,"Totaal",null,{"$f":"SUBTOTAL(109,Verbeteringen[BEDRAG])","v":{"v":0,"d":"€ 0.00"}}]
[]
[null,"LIJST MET KAPITAALGOEDEREN"," ","BEDRAG"]
[null,"Meubilair",null,{"v":0,"d":"€ 0.00"}]
[null,"Apparatuur",null,{"v":0,"d":"€ 0.00"}]
[null,"Verlichting",null,{"v":0,"d":"€ 0.00"}]
[null,"Machinebouw",null,{"v":0,"d":"€ 0.00"}]
[null,"Overige",null,{"v":0,"d":"€ 0.00"}]
[null,"Totaal",null,{"$f":"SUBTOTAL(109,Kapitaal[BEDRAG])","v":{"v":0,"d":"€ 0.00"}}]
[]
[null,"LOCATIE- EN ADMINISTRATIEKOSTEN"," ","BEDRAG"]
[null,"Huur",null,{"v":0,"d":"€ 0.00"}]
[null,"Nutsdeposito",null,{"v":0,"d":"€ 0.00"}]
[null,"Juridische en administratiekosten",null,{"v":0,"d":"€ 0.00"}]
[null,"Vooruitbetaalde verzekeringen",null,{"v":0,"d":"€ 0.00"}]
[null,"Salarissen vóór de opening ",null,{"v":0,"d":"€ 0.00"}]
[null,"Overige",null,{"v":0,"d":"€ 0.00"}]
[null,"Totaal",null,{"$f":"SUBTOTAL(109,AdminUitgaven[BEDRAG])","v":{"v":0,"d":"€ 0.00"}}]
[]
[null,"STARTINVENTARIS"," ","BEDRAG"]
[null,"Categorie 1",null,{"v":0,"d":"€ 0.00"}]
[null,"Categorie 2",null,{"v":0,"d":"€ 0.00"}]
[null,"Categorie 3",null,{"v":0,"d":"€ 0.00"}]
[null,"Categorie 4",null,{"v":0,"d":"€ 0.00"}]
[null,"Categorie 5",null,{"v":0,"d":"€ 0.00"}]
[null,"Totaal",null,{"$f":"SUBTOTAL(109,OpeningInventaris[BEDRAG])","v":{"v":0,"d":"€ 0.00"}}]
[]
[null,"RECLAME- EN PUBLICITEITSKOSTEN"," ","BEDRAG"]
[null,"Reclame",null,{"v":0,"d":"€ 0.00"}]
[null,"Displays",null,{"v":0,"d":"€ 0.00"}]
[null,"Drukwerk",null,{"v":0,"d":"€ 0.00"}]
[null,"Reizen/entertainment",null,{"v":0,"d":"€ 0.00"}]
[null,"Andere/aanvullende categorieën",null,{"v":0,"d":"€ 0.00"}]
[null,"Totaal",null,{"$f":"SUBTOTAL(109,PromotieUitgaven[BEDRAG])","v":{"v":0,"d":"€ 0.00"}}]
[]
[null,"OVERIGE UITGAVEN"," ","BEDRAG"]
[null,"Overige uitgave 1",null,{"v":0,"d":"€ 0.00"}]
[null,"Overige uitgave 2",null,{"v":0,"d":"€ 0.00"}]
[null,"Totaal",null,{"$f":"SUBTOTAL(109,OverigeUitgaven[BEDRAG])","v":{"v":0,"d":"€ 0.00"}}]
[]
[null,"Reserve voor onvoorziene kosten",null,{"v":0,"d":"€ 0.00"}]
[]
[null,"Werkkapitaal ",null,{"v":0,"d":"€ 0.00"}]
[]
[null,"VOEG EEN BEDRAG TOE VOOR ONVOORZIENE KOSTEN\nLeg uit hoe u bent gekomen aan het bedrag voor onvoorziene kosten. \n\nBEPAAL UW CASHFLOW\nU kunt niet openen met een lege bankrekening. U hebt een cashbuffer nodig voor uitgaven terwijl het bedrijf op gang komt. Uiteindelijk moet u elke 12 maanden een prognose van de cashflow opstellen. Dit is waar u een schatting uitwerkt van uw behoeften aan werkkapitaal. Laat voor nu deze regel leeg of geef een ruwe schatting op. Als u uw cashflow hebt voltooid, kunt u later terugkomen en het zorgvuldig onderzochte bedrag invoeren.\n\nVOER UW KAPITAALMIDDELEN IN\nNu u hebt geschat hoeveelheid kapitaal nodig is om te beginnen, moet u uw aandacht richten op het bovenste gedeelte van dit werkblad. Voer de bedragen die u zelf inbrengt, hoeveel wordt ingebracht door partners of investeerders en hoeveel wordt verkregen middels leningen."]
[]
[null,"KAPITAALMIDDELEN"]
[null,"INVESTERING EIGENAREN (NAAM EN EIGENDOMSPERCENTAGE)"," ","BEDRAG"]
[null,"Uw naam en eigendomspercentage",null,{"v":0,"d":"€ 0.00"}]
[null,"Andere investeerder",null,{"v":0,"d":"€ 0.00"}]
[null,"Andere investeerder",null,{"v":0,"d":"€ 0.00"}]
[null,"Andere investeerder",null,{"v":0,"d":"€ 0.00"}]
[null,"Totaal",null,{"$f":"SUBTOTAL(109,EigenarenInvesteringen[BEDRAG])","v":{"v":0,"d":"€ 0.00"}}]
[]
[null,"BANKLENINGEN"," ","BEDRAG"]
[null,"Bank 1",null,{"v":0,"d":"€ 0.00"}]
[null,"Bank 2",null,{"v":0,"d":"€ 0.00"}]
[null,"Bank 3",null,{"v":0,"d":"€ 0.00"}]
[null,"Bank 4",null,{"v":0,"d":"€ 0.00"}]
[null,"Totaal",null,{"$f":"SUBTOTAL(109,Bankleningen[BEDRAG])","v":{"v":0,"d":"€ 0.00"}}]
[]
[null,"ANDERE LENINGEN"," ","BEDRAG"]
[null,"Bron 1",null,{"v":0,"d":"€ 0.00"}]
[null,"Bron 2",null,{"v":0,"d":"€ 0.00"}]
[null,"Totaal",null,{"$f":"SUBTOTAL(109,OverigeLeningen[BEDRAG])","v":{"v":0,"d":"€ 0.00"}}]
[]
[null,"BEWIJS VAN ONDERPAND\nAls u dit plan gebruikt ter ondersteuning van een leningaanvraag bij een bank, gebruikt u de sectie onderaan om aan te geven welk onderpand wordt geboden als zekerheidstelling voor de lening en om een schatting te geven van de waarde van deze items. Bereid u erop voor dat u bewijs moet leveren van de waarde van uw onderpand."]
[]
[null,"SAMENVATTENDE VERKLARING"]
[null,"KAPITAALMIDDELEN"," ","TOTALEN"]
[null,"Investeringen van eigenaren en anderen",null,{"$f":"EigenarenInvesteringen[[#Totals],[BEDRAG]]","v":{"v":0,"d":"€ 0.00"}}]
[null,"Bankleningen",null,{"$f":"Bankleningen[[#Totals],[BEDRAG]]","v":{"v":0,"d":"€ 0.00"}}]
[null,"Andere leningen",null,{"$f":"OverigeLeningen[[#Totals],[BEDRAG]]","v":{"v":0,"d":"€ 0.00"}}]
[null,"Totaal",null,{"$f":"SUBTOTAL(109,KapitaalBronnen[TOTALEN])","v":{"v":0,"d":"€ 0.00"}}]
[]
[null,"OPSTARTUITGAVEN"," ","TOTALEN"]
[null,"Gebouwen/onroerend goed",null,{"$f":"OnroerendGoed[[#Totals],[BEDRAG]]","v":{"v":0,"d":"€ 0.00"}}]
[null,"Huurverbeteringen",null,{"$f":"Verbeteringen[[#Totals],[BEDRAG]]","v":{"v":0,"d":"€ 0.00"}}]
[null,"Kapitaalgoederen",null,{"$f":"Kapitaal[[#Totals],[BEDRAG]]","v":{"v":0,"d":"€ 0.00"}}]
[null,"Locatie-/administratiekosten",null,{"$f":"AdminUitgaven[[#Totals],[BEDRAG]]","v":{"v":0,"d":"€ 0.00"}}]
[null,"Startinventaris",null,{"$f":"OpeningInventaris[[#Totals],[BEDRAG]]","v":{"v":0,"d":"€ 0.00"}}]
[null,"Reclame-/promotieuitgaven",null,{"$f":"PromotieUitgaven[[#Totals],[BEDRAG]]","v":{"v":0,"d":"€ 0.00"}}]
[null,"Overige uitgaven",null,{"$f":"OverigeUitgaven[[#Totals],[BEDRAG]]","v":{"v":0,"d":"€ 0.00"}}]
[null,"Fonds onvoorziene kosten",null,{"$f":"SUM(Opstartuitgaven!$C$57)","v":{"v":0,"d":"€ 0.00"}}]
[null,"Werkkapitaal",null,{"$f":"SUM(Opstartuitgaven!$C$59)","v":{"v":0,"d":"€ 0.00"}}]
[null,"Totaal",null,{"$f":"SUBTOTAL(109,Opstartkosten[TOTALEN])","v":{"v":0,"d":"€ 0.00"}}]
[]
[null,"ZEKERHEIDSSTELLING EN ONDERPAND VOOR LEENVOORSTEL"]
[null,"ONDERPAND VOOR LENINGEN","BESCHRIJVING","WAARDE"]
[null,"Onroerend goed",null,{"v":0,"d":"€ 0.00"}]
[null,"Andere zekerheidsstelling",null,{"v":0,"d":"€ 0.00"}]
[null,"Andere zekerheidsstelling",null,{"v":0,"d":"€ 0.00"}]
[null,"Andere zekerheidsstelling",null,{"v":0,"d":"€ 0.00"}]
[null,"Totaal",null,{"$f":"SUBTOTAL(109,Onderpand[WAARDE])","v":{"v":0,"d":"€ 0.00"}}]
[]
[null,"EIGENAREN"," ","  "]
[null,"Uw naam hier"]
[null,"Andere eigenaar"]
[null,"Andere eigenaar"]
[]
[null,"KREDIETGARANTIEGEVERS (ANDERS DAN EIGENAREN)"," ","  "]
[null,"Kredietgarantiegever 1"]
[null,"Kredietgarantiegever 2"]
[null,"Kredietgarantiegever 3"]